Department family,Entity,Date,Expense Type,Expense area,Supplier,Transation number,Amount,Narrative
Department for Culture Media and Sport,Department for Culture Media and Sport,01/03/2018,Capital Grant Private Sector,GIA Architecture+Heritage,Chatham Historic Dockyard Trust,50004134,"18,000.00",A1741 Chatham Historic Dockyard March 1718
Department for Culture Media and Sport,Department for Culture Media and Sport,01/03/2018,Capital Grant Private Sector,GIA Architecture+Heritage,Chatham Historic Dockyard Trust,50004134,"250,000.00",A1741 Chatham Historic Dockyard March 1718
Department for Culture Media and Sport,Department for Culture Media and Sport,01/03/2018,Grant to OGD (Resource),Architecture + heritage progs,The Treasurer to the Queen,50004135,"271,095.00",FI000 Marlborough House March 1718 Grant
Department for Culture Media and Sport,Department for Culture Media and Sport,01/03/2018,Current Grants Private Sector,GIA Architecture+Heritage,Greenwich Foundation for the RN College,50004136,"80,674.00",A1739 Old Royal Naval College March 1718
Department for Culture Media and Sport,Department for Culture Media and Sport,01/03/2018,Grant-in-Aid (DCMS NDPBs),GIA Arts bodies,Arts Council of England,50004137,"47,396,135.00",ACE GiA March 2018
Department for Culture Media and Sport,Department for Culture Media and Sport,01/03/2018,Grant-in-Aid (DCMS NDPBs),GIA British Film Institute,British Film Institute,50004138,"1,503,551.00",BFI GiA March 2018
Department for Culture Media and Sport,Department for Culture Media and Sport,01/03/2018,Grant-in-Aid (DCMS NDPBs),GIA Libraries bodies,British Library,50004139,"8,481,718.00",BL GiA March 2018
Department for Culture Media and Sport,Department for Culture Media and Sport,01/03/2018,Grant-in-Aid (DCMS NDPBs),GIA Museums & Galleries,British Museum,50004140,"8,852,000.00",BM GiA March 2018
Department for Culture Media and Sport,Department for Culture Media and Sport,01/03/2018,Grant-in-Aid (DCMS NDPBs),GIA Tourism bodies,VisitBritain,50004141,"16,133,000.00",VB GiA March 2018
Department for Culture Media and Sport,Department for Culture Media and Sport,01/03/2018,Grant-in-Aid (DCMS NDPBs),GIA Architecture+Heritage,Churches Conservation Trust,50004142,"49,653.00",CCT GiA March 2018
Department for Culture Media and Sport,Department for Culture Media and Sport,05/03/2018,Grant-in-Aid (DCMS NDPBs),GIA Architecture+Heritage,Historic England (GIA),50004143,"8,636,000.00",HE GiA March 2018
Department for Culture Media and Sport,Department for Culture Media and Sport,01/03/2018,Grant-in-Aid (DCMS NDPBs),GIA Museums & Galleries,Geffrye Museum,50004144,"124,666.00",GM GiA March 2018
Department for Culture Media and Sport,Department for Culture Media and Sport,01/03/2018,Grant-in-Aid (DCMS NDPBs),GIA Museums & Galleries,Horniman Museum,50004145,"675,518.00",HM GiA March 2018
Department for Culture Media and Sport,Department for Culture Media and Sport,01/03/2018,Grant-in-Aid (DCMS NDPBs),GIA Museums & Galleries,Imperial War Museum,50004147,"1,720,998.00",IWM GiA March 2018
Department for Culture Media and Sport,Department for Culture Media and Sport,05/03/2018,Grant-in-Aid (DCMS NDPBs),GIA Museums & Galleries,National Gallery,50004148,"1,365,528.00",NG GiA March 2018
Department for Culture Media and Sport,Department for Culture Media and Sport,05/03/2018,Grant-in-Aid (DCMS NDPBs),GIA Museums & Galleries,National Maritime Museum,50004149,"1,293,337.00",RMG GiA March 2018
Department for Culture Media and Sport,Department for Culture Media and Sport,01/03/2018,Grant-in-Aid (DCMS NDPBs),GIA Museums & Galleries,National Museums & Galleries Merseyside,50004150,"1,200,814.00",NML GiA March 2018
Department for Culture Media and Sport,Department for Culture Media and Sport,01/03/2018,Grant-in-Aid (DCMS NDPBs),GIA Museums & Galleries,National Portrait Gallery,50004151,"852,751.00",NPG GiA March 2018
Department for Culture Media and Sport,Department for Culture Media and Sport,01/03/2018,Grant-in-Aid (DCMS NDPBs),GIA Museums & Galleries,Natural History Museum,50004152,"3,484,587.00",NHM GiA March 2018
Department for Culture Media and Sport,Department for Culture Media and Sport,01/03/2018,Grant-in-Aid (DCMS NDPBs),GIA Architecture+Heritage,National Heritage Memorial Fund,50004153,"608,362.00",NHMF GiA March 2018
Department for Culture Media and Sport,Department for Culture Media and Sport,01/03/2018,Grant-in-Aid (DCMS NDPBs),OFCOM,OFCOM,50004154,"6,249,532.00",OfUHF GiA March 2018
Department for Culture Media and Sport,Department for Culture Media and Sport,01/03/2018,Grant-in-Aid (DCMS NDPBs),GIA Museums & Galleries,The Royal Armouries,50004155,"882,551.00",RA GiA March 2018
Department for Culture Media and Sport,Department for Culture Media and Sport,01/03/2018,Grant-in-Aid (DCMS NDPBs),GIA S4C Welsh Fourth Channel,S4C-Sianel Pedwar Cymru-all inv inc. GIA,50004156,"641,000.00",S4C GiA March 2018
Department for Culture Media and Sport,Department for Culture Media and Sport,01/03/2018,Grant-in-Aid (DCMS NDPBs),GIA Museums & Galleries,Science Museum Group (ex-NMSI),50004157,"5,174,250.00",SMG GiA March 2018
Department for Culture Media and Sport,Department for Culture Media and Sport,01/03/2018,Grant-in-Aid (DCMS NDPBs),GIA Sports bodies,Sport Ground Safety Authority,50004158,"130,000.00",SGSA GiA March 2018
Department for Culture Media and Sport,Department for Culture Media and Sport,01/03/2018,Grant-in-Aid (DCMS NDPBs),GIA Museums & Galleries,Sir John Soane's Museum,50004159,"82,000.00",SJSM GiA March 2018
Department for Culture Media and Sport,Department for Culture Media and Sport,01/03/2018,Grant-in-Aid (DCMS NDPBs),GIA Sports bodies,Sport England,50004160,"22,843,000.00",SE GiA March 2018
Department for Culture Media and Sport,Department for Culture Media and Sport,05/03/2018,Grant-in-Aid (DCMS NDPBs),GIA Museums & Galleries,Tate Gallery,50004161,"3,172,167.00",TATE GiA March 2018
Department for Culture Media and Sport,Department for Culture Media and Sport,05/03/2018,Grant-in-Aid (DCMS NDPBs),GIA Sports bodies,United Kingdom Sports Council,50004162,"6,180,808.00",UKS GiA March 2018
Department for Culture Media and Sport,Department for Culture Media and Sport,01/03/2018,Grant-in-Aid (DCMS NDPBs),GIA Sports bodies,United Kingdom Anti Doping Ltd,50004163,"196,000.00",UKAD GiA March 2018
Department for Culture Media and Sport,Department for Culture Media and Sport,01/03/2018,Grant-in-Aid (DCMS NDPBs),GIA Museums & Galleries,Victoria & Albert Museum,50004164,"3,495,500.00",VA GiA March 2018
Department for Culture Media and Sport,Department for Culture Media and Sport,01/03/2018,Grant-in-Aid (DCMS NDPBs),GIA Museums & Galleries,Wallace Collection,50004165,"476,000.00",TWC GiA March 2018
Department for Culture Media and Sport,Department for Culture Media and Sport,05/03/2018,Grant-in-Aid (DCMS NDPBs),GIA Gambling + Lottery bodies,National Lottery Commission,50004166,"309,567.00",NLC GiA March 2018
Department for Culture Media and Sport,Department for Culture Media and Sport,13/03/2018,Grant to BBC:Home Broadcasting,Home Broadcasting:Grant to BBC,British Broadcasting Corporation,50004168,"238,728,987.00",BBC GiA March 2018
Department for Culture Media and Sport,Department for Culture Media and Sport,02/03/2018,Oth Professional Services Prog,DD2 Admin Costs,TechUK,50004183,"60,000.00",Broadband  Grant Yr 01/04/17 to 31/03/18
Department for Culture Media and Sport,Department for Culture Media and Sport,06/03/2018,Capital Grant Private Sector,Mus+Libs-Other Programme Spend,Black Country Living Museum Trust,50004184,"69,865.91",3rd of 4: Renovation Racecourse Colliery
Department for Culture Media and Sport,Department for Culture Media and Sport,06/03/2018,Capital Grant Private Sector,Mus+Libs-Other Programme Spend,Derby Museums,50004185,"39,008.69",3rd of 4: Silk Mill project
Department for Culture Media and Sport,Department for Culture Media and Sport,06/03/2018,Capital Grant Private Sector,Mus+Libs-Other Programme Spend,Horniman Museum,50004186,"75,000.00",1st of 1: Renovation World Gallery
Department for Culture Media and Sport,Department for Culture Media and Sport,06/03/2018,Capital Grant Private Sector,Mus+Libs-Other Programme Spend,"Victoria Art Gallery, Bath",50004189,"31,500.00",Victoria Art Gallery: Satisfactory completion of Work
Department for Culture Media and Sport,Department for Culture Media and Sport,06/03/2018,Capital Grant Private Sector,Mus+Libs-Other Programme Spend,Weald & Downland Open Air Museum,50004192,"71,557.19",4th of 4: Rebuild Dairy & Bakehouse
Department for Culture Media and Sport,Department for Culture Media and Sport,05/03/2018,Current Grants Private Sector,LPW and Ecclesiastical,Topmark Claims Management Ltd,50004194,"296,054.17",Funding for LPW 210218_280218
Department for Culture Media and Sport,Department for Culture Media and Sport,08/03/2018,Capital Grant Private Sector,Mus+Libs-Other Programme Spend,Nottingham City Council,50004195,"25,511.67",1st of 2: Newstead Abbey Renovation
Department for Culture Media and Sport,Department for Culture Media and Sport,08/03/2018,Capital Grant Private Sector,Mus+Libs-Other Programme Spend,ss Great Britain Trust,50004196,"51,329.34",1st of 2: Dockyard Museum refit
Department for Culture Media and Sport,Department for Culture Media and Sport,08/03/2018,Current Grants Private Sector,PASO,MIND,50004199,"483,663.00",A1508 MIND Q4 17-18
Department for Culture Media and Sport,Department for Culture Media and Sport,12/03/2018,Grant to OGD (Resource),DCMS contribution toPFI grants,DCLG,50004201,"3,852,770.00",Q4 2017/18 - Area based grant
Department for Culture Media and Sport,Department for Culture Media and Sport,12/03/2018,Grant to OGD (Resource),DCMS contribution toPFI grants,DCLG,50004201,"3,369,266.00",Q4 2017/18 - Area based grant
Department for Culture Media and Sport,Department for Culture Media and Sport,09/03/2018,Current Grants Private Sector,DD3 Program,Univeristy of South Wales,50004205,"36,000.00",B1023 - GCHQ sponsorship
Department for Culture Media and Sport,Department for Culture Media and Sport,09/03/2018,Current Grants Private Sector,DD3 Program,University of London,50004206,"31,607.00",B1020 - Final Pmt GCHQ sponsorship
Department for Culture Media and Sport,Department for Culture Media and Sport,09/03/2018,Current Grants Private Sector,DD3 Program,University of Southampton,50004207,"36,000.00",B1022 - Pmt for GCHQ sponsorship
Department for Culture Media and Sport,Department for Culture Media and Sport,14/03/2018,Management of Grant Programmes,LPW and Ecclesiastical,Topmark Claims Mgt (Fees A/C),50004209,"40,150.00",LPW ADMIN FEES JAN 2018
Department for Culture Media and Sport,Department for Culture Media and Sport,14/03/2018,Management of Grant Programmes,LPW and Ecclesiastical,Topmark Claims Mgt (Fees A/C),50004209,197.6,LPW ADMIN FEES JAN 2018
Department for Culture Media and Sport,Department for Culture Media and Sport,14/03/2018,Current Grants Private Sector,LPW and Ecclesiastical,Topmark Claims Management Ltd,50004211,"287,294.73",Funding for LPW 280218_070318
Department for Culture Media and Sport,Department for Culture Media and Sport,14/03/2018,Current Grants Private Sector,LPW and Ecclesiastical,The Archbishops Council,50004213,"66,655.41",CCB42/001 Worcester Cathedral Mar 2018
Department for Culture Media and Sport,Department for Culture Media and Sport,14/03/2018,Current Grants Private Sector,LPW and Ecclesiastical,The Archbishops Council,50004215,"122,877.53",CCB01/001 Wells Cathedral Mar 2018
Department for Culture Media and Sport,Department for Culture Media and Sport,14/03/2018,Current Grants Private Sector,LPW and Ecclesiastical,The Archbishops Council,50004217,"80,000.00",CCB23/001 St Paul's Cathedral Mar 2018
Department for Culture Media and Sport,Department for Culture Media and Sport,14/03/2018,Current Grants Private Sector,LPW and Ecclesiastical,The Archbishops Council,50004219,"129,489.61",CCB35/001 Sheffield Cathedral Mar 2018
Department for Culture Media and Sport,Department for Culture Media and Sport,14/03/2018,Current Grants Private Sector,LPW and Ecclesiastical,The Archbishops Council,50004220,"68,988.00",CCB34/001 Salisbury Cathedral Mar 2018
Department for Culture Media and Sport,Department for Culture Media and Sport,14/03/2018,Current Grants Private Sector,LPW and Ecclesiastical,The Archbishops Council,50004221,"99,637.36",CCB31/001 Rochester Cathedral Mar 2018
Department for Culture Media and Sport,Department for Culture Media and Sport,14/03/2018,Current Grants Private Sector,LPW and Ecclesiastical,The Archbishops Council,50004222,"38,656.17",CCB46/001 Ripon Cathedral Mar 2018
Department for Culture Media and Sport,Department for Culture Media and Sport,14/03/2018,Current Grants Private Sector,LPW and Ecclesiastical,The Archbishops Council,50004223,"33,315.94",CCB99/180 Plymouth RC Cathedral Mar 18
Department for Culture Media and Sport,Department for Culture Media and Sport,14/03/2018,Current Grants Private Sector,LPW and Ecclesiastical,The Archbishops Council,50004224,"79,581.74",CCB29/001 Portsmouth Cathedral Mar 2018
Department for Culture Media and Sport,Department for Culture Media and Sport,14/03/2018,Current Grants Private Sector,LPW and Ecclesiastical,The Archbishops Council,50004225,"229,358.76",CCB28/01 Peterborough Cathedral Mar 18
Department for Culture Media and Sport,Department for Culture Media and Sport,14/03/2018,Current Grants Private Sector,LPW and Ecclesiastical,The Archbishops Council,50004226,"58,904.95",CCB99/809 Nottingham RC Cathedral Mar 18
Department for Culture Media and Sport,Department for Culture Media and Sport,14/03/2018,Current Grants Private Sector,LPW and Ecclesiastical,The Archbishops Council,50004228,"87,077.80",CCB26/001 Norwich Cathedral Mar 2018
Department for Culture Media and Sport,Department for Culture Media and Sport,14/03/2018,Current Grants Private Sector,LPW and Ecclesiastical,The Archbishops Council,50004229,"66,519.00",CCB24/001 Manchester Cathedral Mar 18
Department for Culture Media and Sport,Department for Culture Media and Sport,14/03/2018,Current Grants Private Sector,LPW and Ecclesiastical,The Archbishops Council,50004230,"52,556.77",CCB19/001 Leicester Cathedral Mar 18
Department for Culture Media and Sport,Department for Culture Media and Sport,14/03/2018,Current Grants Private Sector,LPW and Ecclesiastical,The Archbishops Council,50004231,"119,332.74",CCB18/001 Hereford Cathedral Mar 18
Department for Culture Media and Sport,Department for Culture Media and Sport,14/03/2018,Current Grants Private Sector,LPW and Ecclesiastical,The Archbishops Council,50004233,"69,373.82",CCB11/001 Coventry Cathedral Mar 2018
Department for Culture Media and Sport,Department for Culture Media and Sport,14/03/2018,Current Grants Private Sector,LPW and Ecclesiastical,The Archbishops Council,50004234,"25,000.00",CCB04/001 Bradford Cathedral Mar 2018
Department for Culture Media and Sport,Department for Culture Media and Sport,16/03/2018,Capital Grant Private Sector,DD2 Program,University of Surrey,50004235,"1,464,722.79",DD2 Program University of Surrey
Department for Culture Media and Sport,Department for Culture Media and Sport,16/03/2018,Capital Grant Private Sector,DD2 Program,King's College London,50004236,"881,319.95",DD2 Program King's College London
Department for Culture Media and Sport,Department for Culture Media and Sport,16/03/2018,Capital Grant Private Sector,DD2 Program,University of Bristol,50004237,"1,582,707.17",DD2 University of Bristol
Department for Culture Media and Sport,Department for Culture Media and Sport,15/03/2018,Current Grants Private Sector,PASO,Smallwood Trust,50004238,"31,407.00",A1677 Smallwood Trust -Tampon Tax Q41718
Department for Culture Media and Sport,Department for Culture Media and Sport,15/03/2018,Current Grants Private Sector,PASO,SHARED LIVES PLUS LTD,50004239,"32,274.00",A1680 Shared Lives Plus Tampon Tax P12 1
Department for Culture Media and Sport,Department for Culture Media and Sport,15/03/2018,Current Grants Private Sector,Social Action,University of Sheffield,50004244,"36,000.00",A1750 Enabling social action 2-Sheffield
Department for Culture Media and Sport,Department for Culture Media and Sport,15/03/2018,Current Grants Private Sector,PASO,White Ribbon Campaign,50004245,"37,857.14",A1609 White Ribbon Campaign Tampon Tax
Department for Culture Media and Sport,Department for Culture Media and Sport,16/03/2018,Current Grants Private Sector,Arts Support in Culture Team,Newcastle Gateshead Initiative,50004249,"716,489.00",Trach 4 as per DCMS NGI Grant agreement
Department for Culture Media and Sport,Department for Culture Media and Sport,19/03/2018,Current Grants Private Sector,DD2 Program,TECHNOLOGY STRATEGY BOARD (INNOVATE UK),50004250,"240,459.00",Digital Catapult FY17/18 - IoT UK
Department for Culture Media and Sport,Department for Culture Media and Sport,19/03/2018,Current Grants Private Sector,DD2 Program,TECHNOLOGY STRATEGY BOARD (INNOVATE UK),50004250,"3,076.02",Digital Catapult FY17/18 - IoT UK
Department for Culture Media and Sport,Department for Culture Media and Sport,19/03/2018,Grant-in-Aid (DCMS NDPBs),GIA Sports bodies,United Kingdom Sports Council,50004253,"41,000.00",Drawdown of additional capital funding
Department for Culture Media and Sport,Department for Culture Media and Sport,19/03/2018,Current Grants Private Sector,Broadband UK Capital+Programme,Digital UK Ltd,50004254,"288,661.00",Digital UK VS C3 MAR'18
Department for Culture Media and Sport,Department for Culture Media and Sport,19/03/2018,Current Grants Private Sector,Social Action,Big Lottery Fund - Place Based Social,50004255,"55,002.00",A1742 Big Lottery Fund - Place Based Social
Department for Culture Media and Sport,Department for Culture Media and Sport,19/03/2018,Current Grants Private Sector,Social Action,Community Organisers Ltd,50004256,"187,500.00",A1625 Community Orgainzers Q4 1718
Department for Culture Media and Sport,Department for Culture Media and Sport,19/03/2018,Current Grants Private Sector,Youth Policy & NCS,Big Lottery Fund- Youth Investment Fund,50004257,"41,007.00",A1616 Big Lottery Fund-Youth Investment
Department for Culture Media and Sport,Department for Culture Media and Sport,19/03/2018,Current Grants Private Sector,Social Action,The Foundation for Social Improvement,50004258,"36,342.00",A1642 Foundation for Social Improvement
Department for Culture Media and Sport,Department for Culture Media and Sport,20/03/2018,Current Grants Private Sector,PASO,The YOU Trust Ltd,50004261,"45,000.00",A1698 YOU Trust Tampon Tax Q4 1718
Department for Culture Media and Sport,Department for Culture Media and Sport,21/03/2018,Current Grants Private Sector,PASO,Plan International UK,50004262,"39,418.50",A1673 Plan Int UK Tampon Tax Q4 1718
Department for Culture Media and Sport,Department for Culture Media and Sport,21/03/2018,Current Grants Private Sector,PASO,Hestia,50004263,"36,628.25",A1664 Hestia Housing Support Tampon Tax
Department for Culture Media and Sport,Department for Culture Media and Sport,20/03/2018,Current Grants Private Sector,PASO,Forward Assist,50004265,"25,328.00",A1662 Forward Assist Tampon Tax Q4 1718
Department for Culture Media and Sport,Department for Culture Media and Sport,20/03/2018,Current Grants Private Sector,PASO,Refuge,50004266,"26,443.00",A1675 Refuge Tampon Tax Q4 1718
Department for Culture Media and Sport,Department for Culture Media and Sport,20/03/2018,Current Grants Private Sector,Governm Inclusive Economy Unit,NESTA,50004268,"380,000.00",A1749 Nesta IEP Enabling Grant Q4 1718
Department for Culture Media and Sport,Department for Culture Media and Sport,21/03/2018,Current Grants to LAs,Governm Inclusive Economy Unit,Manchester City Council,50004272,"58,565.00",C1016 Manchester City Council SQF Q41718
Department for Culture Media and Sport,Department for Culture Media and Sport,20/03/2018,Current Grants Private Sector,PASO,Yorkshire Cancer Research,50004273,"60,134.00",A1697 Yorkshire Cancer Research Q4 1718
Department for Culture Media and Sport,Department for Culture Media and Sport,20/03/2018,Current Grants Private Sector,PASO,KARMA NIRVANA,50004276,"28,047.25",A1587 Karma Nirvana Tampon Tax Q4 1718
Department for Culture Media and Sport,Department for Culture Media and Sport,20/03/2018,Current Grants Private Sector,PASO,The Childrens Society,50004277,"36,805.55",A1657 Children's Society Q4 1718
Department for Culture Media and Sport,Department for Culture Media and Sport,19/03/2018,Capital Grant Private Sector,PASO,Lincs & Notts Air Ambulance,50004278,"100,000.00",A1715 Lincs & Notts Air Ambulance Q4171
Department for Culture Media and Sport,Department for Culture Media and Sport,22/03/2018,Current Grants Private Sector,DD2 Program,Cambridge Wireless Limited,50004280,"66,754.30",D1012 CW Tranche 1 - (No. 1)
Department for Culture Media and Sport,Department for Culture Media and Sport,21/03/2018,Current Grants Private Sector,Social Action,NESTA,50004283,"164,811.00",Nesta Early Years Savers and Support Fun
Department for Culture Media and Sport,Department for Culture Media and Sport,21/03/2018,Current Grants Private Sector,Media - Programme Costs,Multiplex Broadcasting Services NI Ltd,50004284,"25,206.12",Nimux Feb 18-Mar 18
Department for Culture Media and Sport,Department for Culture Media and Sport,21/03/2018,Grant-in-Aid (DCMS NDPBs),GIA Museums & Galleries,National Portrait Gallery,50004287,"2,600,000.00",Loan approved by subcommittee on 5 March
Department for Culture Media and Sport,Department for Culture Media and Sport,21/03/2018,Current Grants Private Sector,LPW and Ecclesiastical,Topmark Claims Management Ltd,50004289,"441,212.87",Funding for LPW 070318_140318
Department for Culture Media and Sport,Department for Culture Media and Sport,23/03/2018,Current Grants Private Sector,PASO,Southall Black Sisters,50004293,"45,582.00",A1684 Southall Black Sisters Tampon tax
Department for Culture Media and Sport,Department for Culture Media and Sport,27/03/2018,Current Grants to Central Govt,Governm Inclusive Economy Unit,Department of Work & Pensions,50004297,"2,177,581.00",DWP Youth Engagement Fund P7-P12 1718
Department for Culture Media and Sport,Department for Culture Media and Sport,27/03/2018,Capital Grant Private Sector,Grant support to NFTS,National Film & Television School,50004298,"186,000.00",A1740 National Film & Television School
Department for Culture Media and Sport,Department for Culture Media and Sport,27/03/2018,Capital Grant Private Sector,Grant support to NFTS,National Film & Television School,50004298,"19,418.00",A1740 National Film & Television School
Department for Culture Media and Sport,Department for Culture Media and Sport,26/03/2018,Grant-in-Aid (DCMS NDPBs),GIA Museums & Galleries,The Royal Armouries,50004299,"400,000.00",Payment of remaining 17/18GIA allocation
Department for Culture Media and Sport,Department for Culture Media and Sport,27/03/2018,Current Grants Private Sector,PASO,SignHealth,50004300,"38,625.00",A1682 SignHealth Tampon Tax P.12 1718
Department for Culture Media and Sport,Department for Culture Media and Sport,27/03/2018,Current Grants Private Sector,PASO,WRSAC Womens Rape & Sexual Abuse,50004302,"28,768.86",A1694 WRSAC Cornwall Tampon Tax P12 1718
Department for Culture Media and Sport,Department for Culture Media and Sport,27/03/2018,Current Grants Private Sector,Youth Policy & NCS,Renaisi Ltd,50004304,"50,000.00",A1645 Renaisi Q4 1718
Department for Culture Media and Sport,Department for Culture Media and Sport,28/03/2018,Current Grants Private Sector,PASO,Advance Advocacy & Non Violence,50004306,"30,342.00",A1649 Advance Tampon Tax Q4 P.12 1718
Department for Culture Media and Sport,Department for Culture Media and Sport,27/03/2018,Current Grants Private Sector,PASO,Black Country Women's Aid,50004308,"25,204.00",A1654 Black Country Women's Aid Q4 P12
Department for Culture Media and Sport,Department for Culture Media and Sport,27/03/2018,Current Grants Private Sector,PASO,STANDING TGETHER AGNST DOMSTIC VIOLNCE,50004310,"107,500.00",A1588 Standing Together Against Domestic Violence 
Department for Culture Media and Sport,Department for Culture Media and Sport,27/03/2018,Current Grants Private Sector,PASO,STANDING TGETHER AGNST DOMSTIC VIOLNCE,50004311,"38,864.00",A1588 Standing Together Against Domestic Violence 
Department for Culture Media and Sport,Department for Culture Media and Sport,27/03/2018,Current Grants Private Sector,PASO,Suzy Lamplugh Trust,50004315,"25,431.98",A1689 Suzy Lamplugh Trust Tampon Tax Q4
Department for Culture Media and Sport,Department for Culture Media and Sport,27/03/2018,Current Grants Private Sector,PASO,Coventry Rape and Sexual Abuse Centre,50004316,"26,315.23",A1692 CRSAC for WMCSVP Tampon Tax Q4 P12
Department for Culture Media and Sport,Department for Culture Media and Sport,27/03/2018,Current Grants Private Sector,PASO,Housing for Women,50004321,"37,719.00",A1665 Housing for Women Tampon Tax Q4P12
Department for Culture Media and Sport,Department for Culture Media and Sport,27/03/2018,Current Grants Private Sector,PASO,GIRLGUIDING,50004322,"30,000.00",A1600 Girl Guiding Q1 1819
Department for Culture Media and Sport,Department for Culture Media and Sport,26/03/2018,Current Grants Private Sector,LPW and Ecclesiastical,Topmark Claims Management Ltd,50004323,"321,323.14",Funding for LPW 140318_210318
Department for Culture Media and Sport,Department for Culture Media and Sport,26/03/2018,Current Grants Private Sector,DD2 Program,TECH CITY (UK) LTD,50004324,"200,238.00",February grant claim for TCUK
Department for Culture Media and Sport,Department for Culture Media and Sport,26/03/2018,Current Grants Private Sector,DD2 Program,TECH CITY (UK) LTD,50004325,"141,851.00",February grant claim for Tech North
Department for Culture Media and Sport,Department for Culture Media and Sport,27/03/2018,Current Grants Private Sector,LPW and Ecclesiastical,The Archbishops Council,50004326,"281,294.38",CCB13/001 Durham Cathedral Mar 18
Department for Culture Media and Sport,Department for Culture Media and Sport,27/03/2018,Current Grants Private Sector,LPW and Ecclesiastical,The Archbishops Council,50004328,"34,807.50",CCB16/001 Gloucester Cathedral Mar 18
Department for Culture Media and Sport,Department for Culture Media and Sport,27/03/2018,Current Grants Private Sector,LPW and Ecclesiastical,The Archbishops Council,50004329,"56,117.93",CCB22/001 Liverpool Cathedral Mar 18
Department for Culture Media and Sport,Department for Culture Media and Sport,27/03/2018,Current Grants Private Sector,LPW and Ecclesiastical,The Archbishops Council,50004330,"36,445.80",CCB22/001 Liverpool Cathedral Mar 18
Department for Culture Media and Sport,Department for Culture Media and Sport,28/03/2018,Current Grants Private Sector,LPW and Ecclesiastical,The Archbishops Council,50004333,"279,126.57",CB99/181 Salford RC Cathedral Mar 18
Department for Culture Media and Sport,Department for Culture Media and Sport,28/03/2018,Current Grants Private Sector,LPW and Ecclesiastical,The Archbishops Council,50004334,"153,758.18",
Department for Culture Media and Sport,Department for Culture Media and Sport,28/03/2018,Current Grants Private Sector,LPW and Ecclesiastical,The Archbishops Council,50004335,"42,606.09",CCB99/804 Shrewsbury RC Cathedral Mar 18
Department for Culture Media and Sport,Department for Culture Media and Sport,27/03/2018,Capital Grants to LAs,Broadband UK Capital+Programme,Central Bedfordshire Council,50004337,"881,463.00",RUTWO BEDS C4 Q3 17-18
Department for Culture Media and Sport,Department for Culture Media and Sport,27/03/2018,Capital Grants to LAs,Broadband UK Capital+Programme,Essex County Council,50004338,"519,782.00",RUTWO ESSX C6 Q3 17-18
Department for Culture Media and Sport,Department for Culture Media and Sport,27/03/2018,Capital Grants to LAs,Broadband UK Capital+Programme,East Riding of Yorkshire Council,50004339,"780,459.00",RUTWO EYRK C7 Q3 17-18
Department for Culture Media and Sport,Department for Culture Media and Sport,27/03/2018,Capital Grants to LAs,Broadband UK Capital+Programme,Hertfordshire County Council,50004340,"1,100,238.00",RUTWO BUCK C8 Q3 17-18
Department for Culture Media and Sport,Department for Culture Media and Sport,27/03/2018,Capital Grants to LAs,Broadband UK Capital+Programme,East Sussex County Council,50004341,"61,888.00",RUTWO ESUS C7 Q3 17-18
Department for Culture Media and Sport,Department for Culture Media and Sport,27/03/2018,Capital Grants to LAs,Broadband UK Capital+Programme,Durham County Council,50004342,"589,295.00",RUTWO DURH C7 Q3 17-18
Department for Culture Media and Sport,Department for Culture Media and Sport,27/03/2018,Capital Grants to LAs,Broadband UK Capital+Programme,Norfolk County Council,50004343,"1,282,200.00",RUTWO NORF C6 Q3 17-18
Department for Culture Media and Sport,Department for Culture Media and Sport,28/03/2018,Current Grants Private Sector,LPW and Ecclesiastical,Topmark Claims Management Ltd,50004376,"350,135.11",Funding for LPW 210318-260318
Department for Culture Media and Sport,Department for Culture Media and Sport,28/03/2018,Grant-in-Aid (DCMS NDPBs),GIA Museums & Galleries,Imperial War Museum,50004378,"120,000.00",GIA to offset costs incurred 
Department for Culture Media and Sport,Department for Culture Media and Sport,28/03/2018,Management of Grant Programmes,LPW and Ecclesiastical,Topmark Claims Mgt (Fees A/C),50004379,"68,925.00",LPW ADMIN FEES FEB 2018
Department for Culture Media and Sport,Department for Culture Media and Sport,28/03/2018,Management of Grant Programmes,LPW and Ecclesiastical,Topmark Claims Mgt (Fees A/C),50004379,337.6,LPW ADMIN FEES FEB 2018
Department for Culture Media and Sport,Department for Culture Media and Sport,29/03/2018,Capital Grants to LAs,Broadband UK Capital+Programme,Warwickshire County Council,50004385,"168,770.00",RUTWO WWCK C7 Q3 17-18
Department for Culture Media and Sport,Department for Culture Media and Sport,29/03/2018,Capital Grants to LAs,Broadband UK Capital+Programme,Hampshire County Council,50004386,"1,923,714.00",RUTWO HAMP C6 Q2 17-18
Department for Culture Media and Sport,Department for Culture Media and Sport,29/03/2018,Capital Grants to LAs,Broadband UK Capital+Programme,Cornwall Council,50004387,"70,530.00",RUTWO CORN C6 Q3 17-18
Department for Culture Media and Sport,Department for Culture Media and Sport,29/03/2018,Current Grants Private Sector,DD2 Program,TECHNOLOGY STRATEGY BOARD (INNOVATE UK),50004388,"1,199,171.61",Innovate UK
Department for Culture Media and Sport,Department for Culture Media and Sport,29/03/2018,Current Grants Private Sector,DD2 Program,TECHNOLOGY STRATEGY BOARD (INNOVATE UK),50004388,"1,800.00",Innovate UK
Department for Culture Media and Sport,Department for Culture Media and Sport,29/03/2018,Capital Grant Private Sector,Mus+Libs-Other Programme Spend,University of Oxford Development Trust,50004389,"82,326.18",Approved Drawdown Period. 
Department for Culture Media and Sport,Department for Culture Media and Sport,29/03/2018,Capital Grant Private Sector,Mus+Libs-Other Programme Spend,London Transport Museum (Trading) Ltd,50004391,"75,000.00",Approved Drawdown Period. 
Department for Culture Media and Sport,Department for Culture Media and Sport,29/03/2018,Capital Grant Private Sector,Mus+Libs-Other Programme Spend,Birmingham Museums & Art Gallery,50004393,"75,000.00",Approved Drawdown Period. 
Department for Culture Media and Sport,Department for Culture Media and Sport,29/03/2018,Capital Grant Private Sector,Mus+Libs-Other Programme Spend,Tyne and Wear Museums,50004397,"150,000.00",Approved Drawdown Period. 
Department for Culture Media and Sport,Department for Culture Media and Sport,29/03/2018,Capital Grant Private Sector,Mus+Libs-Other Programme Spend,National Museums Liverpool,50004398,"186,202.89",First and Only - Maritime Museum Sea Gallery
Department for Culture Media and Sport,Department for Culture Media and Sport,29/03/2018,Capital Grant Private Sector,Mus+Libs-Other Programme Spend,Royal Institution of Cornwall,50004399,"50,000.00",First and only payment - Lighting upgrade
Department for Culture Media and Sport,Department for Culture Media and Sport,29/03/2018,Capital Grant Private Sector,Mus+Libs-Other Programme Spend,Durham University,50004400,"43,550.00",2nd & Final Pmt:  Netherfield Showcase
Department for Culture Media and Sport,Department for Culture Media and Sport,29/03/2018,Current Grants Private Sector,Social Action,South Western Ambulance Service,50004405,"40,000.00",A1756 South Western Ambulance Service Q4
Department for Culture Media and Sport,Department for Culture Media and Sport,29/03/2018,Current Grants Private Sector,Social Action,EAST OF ENGLAND AMBULANCE NHS TRUST,50004406,"25,000.00",A1755 East Of England Ambulance Service
Department for Culture Media and Sport,Department for Culture Media and Sport,29/03/2018,Current Grants Private Sector,Social Action,South Central Ambulance Charity,50004407,"45,000.00",A1757 South Central Ambulance Charity
Department for Culture Media and Sport,Department for Culture Media and Sport,29/03/2018,Current Grants Private Sector,LPW and Ecclesiastical,The Archbishops Council,50004411,"100,015.75",ccb16/001 Gloucester Cathedral Mar18
Department for Culture Media and Sport,Department for Culture Media and Sport,29/03/2018,Current Grants Private Sector,LPW and Ecclesiastical,The Archbishops Council,50004412,"34,025.67",CCB19/001 Leicester Cathedral Mar 18
Department for Culture Media and Sport,Department for Culture Media and Sport,29/03/2018,Current Grants Private Sector,LPW and Ecclesiastical,The Archbishops Council,50004413,"76,589.06",CCB20/001 Lichfield Cathedral Mar18
Department for Culture Media and Sport,Department for Culture Media and Sport,29/03/2018,Current Grants Private Sector,LPW and Ecclesiastical,The Archbishops Council,50004415,"35,012.11",CCB33/001 St Edmundsbury Cathedral
Department for Culture Media and Sport,Department for Culture Media and Sport,29/03/2018,Capital Grant Private Sector,Mus+Libs-Other Programme Spend,Chatham Historic Dockyard Trust,50004416,"83,310.57",2nd & Final Pmt: Museum & Library upgrade
Department for Culture Media and Sport,Department for Culture Media and Sport,29/03/2018,Capital Grant Private Sector,Mus+Libs-Other Programme Spend,York Museums Trust,50004417,"50,000.00",1st & Final: Jurassic Gallery
Department for Culture Media and Sport,Department for Culture Media and Sport,29/03/2018,Capital Grant Private Sector,Mus+Libs-Other Programme Spend,Nottingham City Museums and Galleries,50004418,"49,113.68",2nd & Final: Newstead Abbey Renovation
Department for Culture Media and Sport,Department for Culture Media and Sport,29/03/2018,Capital Grant Private Sector,Mus+Libs-Other Programme Spend,Royal Albert Memorial Museum & Art,50004419,"190,000.00",1st & Final: World Cultures Gallery
Department for Culture Media and Sport,Department for Culture Media and Sport,29/03/2018,Current Grants Private Sector,PASO,PAUSE CREATING SPACE FOR CHANGE,50004421,"58,332.50",A1602 Pause Tax P.12 Q4 17/18 
Department for Culture Media and Sport,Department for Culture Media and Sport,29/03/2018,Capital Grant Private Sector,Mus+Libs-Other Programme Spend,Russell Coates Art Gallery & Museum,50004426,"86,010.10",2nd & Final : Skylight to Art Gallery
1,,,,,,,,
